{"text_format":"1","workbook":"xlsx","n_sheets":2,"sheets":["Feuil1","Feuil2"],"not_rendered":{"charts":0,"images":0,"macros":1,"external_links":0,"defined_names":0,"comments":0,"pivot_tables":0},"unopened":[],"bounds":{"document_bytes":16777216,"sheet_cells":100000,"rows_first":2000,"rows_last":500,"rows_between":2000,"halvings":0,"cell_chars":16384,"cell_head_chars":4096},"cells_cut":0,"cells_raw":0,"read":"whole","date_system":"1900"}

{"sheet":"Feuil1","index":0,"n_rows":59,"n_cols":3,"rows_kept":59,"cut":false,"hidden":false,"merged":[]}
["Date","Evenement","Date rectifiée"]
["16/09/1380","Charles VI, Roi de France",{"$f":"IFERROR(EDATE(A2*1,24000),DATE(RIGHT(A2,4)+2000,MID(A2,4,2),LEFT(A2,2)))","v":"3380-09-16"}]
["21/10/1422","Charles VII, Roi de France",{"$f":"IFERROR(EDATE(A3*1,24000),DATE(RIGHT(A3,4)+2000,MID(A3,4,2),LEFT(A3,2)))","v":"3422-10-21"}]
["06/01/1440","Louis I, Duc de Savoie","3440-01-06"]
["22/07/1461","Louis XI, Roi de France","3461-07-22"]
["30/08/1483","Charles VIII (Anne de France, régente)","3483-08-30"]
["27/06/1491","Charles VIII, Roi de France","3491-06-27"]
["07/04/1498","Louis XII, Roi de France","3498-04-07"]
["01/01/1515","François Ier, Roi de France","3515-01-01"]
["31/03/1547","Henri II, Roi de France","3547-03-31"]
["10/07/1559","François II, Roi de France","3559-07-10"]
["05/12/1560","Charles IX (Catherine de Médicis, régente)","3560-12-05"]
["19/08/1563","Charles IX, Roi de France","3563-08-19"]
["30/05/1574","Henri III, Roi de France","3574-05-30"]
["02/08/1589","Henri IV, Roi de France","3589-08-02"]
["14/05/1610","Louis XIII (Marie de Médicis, régente)","3610-05-14"]
["24/04/1617","Louis XIII, Roi de France","3617-04-24"]
["14/05/1643","Louis XIV (Anne d'Autriche, régente)","3643-05-14"]
["07/09/1651","Louis XIV, Roi de France","3651-09-07"]
["02/09/1715","Louis XV (Philippe d'Orléans, régent)","3715-09-02"]
["25/10/1722","Louis XV, Roi de France","3722-10-25"]
["10/05/1774","Louis XVI, Roi de France","3774-05-10"]
["03/09/1791","Louis XVI, Roi des Français (monarchie constitutionelle)","3791-09-03"]
["21/09/1792","Convention Nationale","3792-09-21"]
["26/10//1795","Directoire (5 Directeurs)","3795-10-26"]
["09/11/1799","Consulat (3 Consuls - Napoléon Bonaparte 1er Consul)","3799-11-09"]
["18/05/1804","Napoléon, Empereur des Français","3804-05-18"]
["08/07/1815","Louis XVIII, Roi de France","3815-07-08"]
["14/09/1824","Charles X, Roi de France","3824-09-14"]
["09/08/1830","Louis-Philippe Ier, Roi de France","3830-08-09"]
["20/12/1848","Louis-Napoléon Bonaparte, Président de la République française","3848-12-20"]
["02/12/1852","Napoléon III, Empereur des Français","3852-12-02"]
["04/09/1870","Louis Jules Trochu, Président du Gouvernement de la Défense nationale","3870-09-04"]
["31/08/1871","Adolphe Thiers, Président de la République française","3871-08-31"]
["24/05/1873","Patrice de Mac-Mahon, Président de la République française","3873-05-24"]
["30/01/1879","Jules Grévy, Président de la République française","3879-01-30"]
["03/12/1887","Sadi Carnot, Président de la République française","3887-12-03"]
["27/06/1894","Jean Casimir-Perier, Président de la République française","3894-06-27"]
["17/01/1895","Félix Faure, Président de la République française","3895-01-17"]
["18/02/1899","Émile Loubet, Président de la République française","3899-02-18"]
["1906-02-18","Armand Fallières, Président de la République française","3906-02-18"]
["1913-02-18","Raymond Poincaré, Président de la République française","3913-02-18"]
["1920-02-18","Paul Deschanel, Président de la République française","3920-02-18"]
["1920-09-23","Alexandre Millerand, Président de la République française","3920-09-23"]
["1924-06-13","Gaston Doumergue, Président de la République française","3924-06-13"]
["1931-05-13","Paul Doumer, Président de la République française","3931-05-13"]
["1932-05-10","Albert Lebrun, Président de la République française","3932-05-10"]
["1940-06-11","Philippe Pétain, Chef de l'Etat français","3940-06-11"]
["1944-06-03","Charles de Gaulle, Président du gouvernement provisoire de la République française","3944-06-03"]
["1947-01-16","Vincent Auriol, Président de la République française","3947-01-16"]
["1954-01-16","René Coty, Président de la République française","3954-01-16"]
["1959-01-08","Charles de Gaulle, Président de la République française","3959-01-08"]
["1969-06-15","Georges Pompidou, Président de la République française","3969-06-15"]
["1974-05-19","Valéry Giscard-d'Estaing, Président de la République française","3974-05-19"]
["1981-05-10","François Mitterrand, Président de la République française","3981-05-10"]
["1995-06-10","Jacques Chirac, Président de la République française","3995-06-10"]
["2007-05-06","Nicolas Sarkozy, Président de la République française","4007-05-06"]
["2012-05-06","François Hollande, Président de la République française","4012-05-06"]
["2017-05-07","Emmanuel Macron, Président de la République française","4017-05-07"]

{"sheet":"Feuil2","index":1,"n_rows":24,"n_cols":7,"rows_kept":24,"cut":false,"hidden":false,"merged":[]}
["Nom","Naissance","Decès","Naissance rectifiée","Decès rectifié","Evenements"]
["Timothée Bertrand-Lamy","1906-01-25","1983-03-17",{"$f":"IFERROR(EDATE(B2*1,24000),DATE(RIGHT(B2,4)+2000,MID(B2,4,2),LEFT(B2,2)))","v":"3906-01-25"},{"$f":"IFERROR(EDATE(C2*1,24000),DATE(RIGHT(C2,4)+2000,MID(C2,4,2),LEFT(C2,2)))","v":"3983-03-17"},{"$f":"evenements(D2,E2)","v":"18/02/1906 - Armand Fallières, Président de la République française / 18/02/1913 - Raymond Poincaré, Président de la République française / 18/02/1920 - Paul Deschanel, Président de la République française / 23/09/1920 - Alexandre Millerand, Président de la République française / 13/06/1924 - Gaston Doumergue, Président de la République française / 13/05/1931 - Paul Doumer, Président de la République française / 10/05/1932 - Albert Lebrun, Président de la République française / 11/06/1940 - Philippe Pétain, Chef de l'Etat français / 03/06/1944 - Charles de Gaulle, Président du gouvernement provisoire de la République française / 16/01/1947 - Vincent Auriol, Président de la République française / 16/01/1954 - René Coty, Président de la République française / 08/01/1959 - Charles de Gaulle, Président de la République française / 15/06/1969 - Georges Pompidou, Président de la République française / 19/05/1974 - Valéry Giscard-d'Estaing, Président de la République française / 10/05/1981 - François Mitterrand, Président de la République française / "}]
["Marianne Boulanger","1904-06-04","1969-07-21",{"$f":"IFERROR(EDATE(B3*1,24000),DATE(RIGHT(B3,4)+2000,MID(B3,4,2),LEFT(B3,2)))","v":"3904-06-04"},{"$f":"IFERROR(EDATE(C3*1,24000),DATE(RIGHT(C3,4)+2000,MID(C3,4,2),LEFT(C3,2)))","v":"3969-07-21"},{"$f":"evenements(D3,E3)","v":"18/02/1906 - Armand Fallières, Président de la République française / 18/02/1913 - Raymond Poincaré, Président de la République française / 18/02/1920 - Paul Deschanel, Président de la République française / 23/09/1920 - Alexandre Millerand, Président de la République française / 13/06/1924 - Gaston Doumergue, Président de la République française / 13/05/1931 - Paul Doumer, Président de la République française / 10/05/1932 - Albert Lebrun, Président de la République française / 11/06/1940 - Philippe Pétain, Chef de l'Etat français / 03/06/1944 - Charles de Gaulle, Président du gouvernement provisoire de la République française / 16/01/1947 - Vincent Auriol, Président de la République française / 16/01/1954 - René Coty, Président de la République française / 08/01/1959 - Charles de Gaulle, Président de la République française / 15/06/1969 - Georges Pompidou, Président de la République française / "}]
["Gabriel Descamps de la Guillou","18/08/1898","1979-12-30",{"$f":"IFERROR(EDATE(B4*1,24000),DATE(RIGHT(B4,4)+2000,MID(B4,4,2),LEFT(B4,2)))","v":"3898-08-18"},{"$f":"IFERROR(EDATE(C4*1,24000),DATE(RIGHT(C4,4)+2000,MID(C4,4,2),LEFT(C4,2)))","v":"3979-12-30"},{"$f":"evenements(D4,E4)","v":"18/02/1899 - Émile Loubet, Président de la République française / 18/02/1906 - Armand Fallières, Président de la République française / 18/02/1913 - Raymond Poincaré, Président de la République française / 18/02/1920 - Paul Deschanel, Président de la République française / 23/09/1920 - Alexandre Millerand, Président de la République française / 13/06/1924 - Gaston Doumergue, Président de la République française / 13/05/1931 - Paul Doumer, Président de la République française / 10/05/1932 - Albert Lebrun, Président de la République française / 11/06/1940 - Philippe Pétain, Chef de l'Etat français / 03/06/1944 - Charles de Gaulle, Président du gouvernement provisoire de la République française / 16/01/1947 - Vincent Auriol, Président de la République française / 16/01/1954 - René Coty, Président de la République française / 08/01/1959 - Charles de Gaulle, Président de la République française / 15/06/1969 - Georges Pompidou, Président de la République française / 19/05/1974 - Valéry Giscard-d'Estaing, Président de la République française / "}]
["Clémence de la Blanchard","1909-07-29","1987-10-16","3909-07-29","3987-10-16",{"$f":"evenements(D5,E5)","v":"18/02/1913 - Raymond Poincaré, Président de la République française / 18/02/1920 - Paul Deschanel, Président de la République française / 23/09/1920 - Alexandre Millerand, Président de la République française / 13/06/1924 - Gaston Doumergue, Président de la République française / 13/05/1931 - Paul Doumer, Président de la République française / 10/05/1932 - Albert Lebrun, Président de la République française / 11/06/1940 - Philippe Pétain, Chef de l'Etat français / 03/06/1944 - Charles de Gaulle, Président du gouvernement provisoire de la République française / 16/01/1947 - Vincent Auriol, Président de la République française / 16/01/1954 - René Coty, Président de la République française / 08/01/1959 - Charles de Gaulle, Président de la République française / 15/06/1969 - Georges Pompidou, Président de la République française / 19/05/1974 - Valéry Giscard-d'Estaing, Président de la République française / 10/05/1981 - François Mitterrand, Président de la République française / "}]
["Denise du Barthelemy","1913-12-07","2007-09-26","3913-12-07","4007-09-26",{"$f":"evenements(D6,E6)","v":"18/02/1920 - Paul Deschanel, Président de la République française / 23/09/1920 - Alexandre Millerand, Président de la République française / 13/06/1924 - Gaston Doumergue, Président de la République française / 13/05/1931 - Paul Doumer, Président de la République française / 10/05/1932 - Albert Lebrun, Président de la République française / 11/06/1940 - Philippe Pétain, Chef de l'Etat français / 03/06/1944 - Charles de Gaulle, Président du gouvernement provisoire de la République française / 16/01/1947 - Vincent Auriol, Président de la République française / 16/01/1954 - René Coty, Président de la République française / 08/01/1959 - Charles de Gaulle, Président de la République française / 15/06/1969 - Georges Pompidou, Président de la République française / 19/05/1974 - Valéry Giscard-d'Estaing, Président de la République française / 10/05/1981 - François Mitterrand, Président de la République française / 10/06/1995 - Jacques Chirac, Président de la République française / 06/05/2007 - Nicolas Sarkozy, Président de la République française / "}]
["Luc Dubois","19/04/1887","1916-09-30","3887-04-19","3916-09-30",{"$f":"evenements(D7,E7)","v":"03/12/1887 - Sadi Carnot, Président de la République française / 27/06/1894 - Jean Casimir-Perier, Président de la République française / 17/01/1895 - Félix Faure, Président de la République française / 18/02/1899 - Émile Loubet, Président de la République française / 18/02/1906 - Armand Fallières, Président de la République française / 18/02/1913 - Raymond Poincaré, Président de la République française / "}]
["Julien Paris","11/11/1888","1980-07-09","3888-11-11","3980-07-09",{"$f":"evenements(D8,E8)","v":"27/06/1894 - Jean Casimir-Perier, Président de la République française / 17/01/1895 - Félix Faure, Président de la République française / 18/02/1899 - Émile Loubet, Président de la République française / 18/02/1906 - Armand Fallières, Président de la République française / 18/02/1913 - Raymond Poincaré, Président de la République française / 18/02/1920 - Paul Deschanel, Président de la République française / 23/09/1920 - Alexandre Millerand, Président de la République française / 13/06/1924 - Gaston Doumergue, Président de la République française / 13/05/1931 - Paul Doumer, Président de la République française / 10/05/1932 - Albert Lebrun, Président de la République française / 11/06/1940 - Philippe Pétain, Chef de l'Etat français / 03/06/1944 - Charles de Gaulle, Président du gouvernement provisoire de la République française / 16/01/1947 - Vincent Auriol, Président de la République française / 16/01/1954 - René Coty, Président de la République française / 08/01/1959 - Charles de Gaulle, Président de la République française / 15/06/1969 - Georges Pompidou, Président de la République française / 19/05/1974 - Valéry Giscard-d'Estaing, Président de la République française / "}]
["Adèle Le Coste","31/08/1876","1935-02-06","3876-08-31","3935-02-06",{"$f":"evenements(D9,E9)","v":"30/01/1879 - Jules Grévy, Président de la République française / 03/12/1887 - Sadi Carnot, Président de la République française / 27/06/1894 - Jean Casimir-Perier, Président de la République française / 17/01/1895 - Félix Faure, Président de la République française / 18/02/1899 - Émile Loubet, Président de la République française / 18/02/1906 - Armand Fallières, Président de la République française / 18/02/1913 - Raymond Poincaré, Président de la République française / 18/02/1920 - Paul Deschanel, Président de la République française / 23/09/1920 - Alexandre Millerand, Président de la République française / 13/06/1924 - Gaston Doumergue, Président de la République française / 13/05/1931 - Paul Doumer, Président de la République française / 10/05/1932 - Albert Lebrun, Président de la République française / "}]
["Aimé-Jacques Thierry","20/08/1893","1977-05-03","3893-08-20","3977-05-03",{"$f":"evenements(D10,E10)","v":"27/06/1894 - Jean Casimir-Perier, Président de la République française / 17/01/1895 - Félix Faure, Président de la République française / 18/02/1899 - Émile Loubet, Président de la République française / 18/02/1906 - Armand Fallières, Président de la République française / 18/02/1913 - Raymond Poincaré, Président de la République française / 18/02/1920 - Paul Deschanel, Président de la République française / 23/09/1920 - Alexandre Millerand, Président de la République française / 13/06/1924 - Gaston Doumergue, Président de la République française / 13/05/1931 - Paul Doumer, Président de la République française / 10/05/1932 - Albert Lebrun, Président de la République française / 11/06/1940 - Philippe Pétain, Chef de l'Etat français / 03/06/1944 - Charles de Gaulle, Président du gouvernement provisoire de la République française / 16/01/1947 - Vincent Auriol, Président de la République française / 16/01/1954 - René Coty, Président de la République française / 08/01/1959 - Charles de Gaulle, Président de la République française / 15/06/1969 - Georges Pompidou, Président de la République française / 19/05/1974 - Valéry Giscard-d'Estaing, Président de la République française / "}]
["Raymond Delattre","08/02/1860","1942-01-08","3860-02-08","3942-01-08",{"$f":"evenements(D11,E11)","v":"04/09/1870 - Louis Jules Trochu, Président du Gouvernement de la Défense nationale / 31/08/1871 - Adolphe Thiers, Président de la République française / 24/05/1873 - Patrice de Mac-Mahon, Président de la République française / 30/01/1879 - Jules Grévy, Président de la République française / 03/12/1887 - Sadi Carnot, Président de la République française / 27/06/1894 - Jean Casimir-Perier, Président de la République française / 17/01/1895 - Félix Faure, Président de la République française / 18/02/1899 - Émile Loubet, Président de la République française / 18/02/1906 - Armand Fallières, Président de la République française / 18/02/1913 - Raymond Poincaré, Président de la République française / 18/02/1920 - Paul Deschanel, Président de la République française / 23/09/1920 - Alexandre Millerand, Président de la République française / 13/06/1924 - Gaston Doumergue, Président de la République française / 13/05/1931 - Paul Doumer, Président de la République française / 10/05/1932 - Albert Lebrun, Président de la République française / 11/06/1940 - Philippe Pétain, Chef de l'Etat français / "}]
["Adrienne Le Goff","29/03/1863","1941-12-11","3863-03-29","3941-12-11",{"$f":"evenements(D12,E12)","v":"04/09/1870 - Louis Jules Trochu, Président du Gouvernement de la Défense nationale / 31/08/1871 - Adolphe Thiers, Président de la République française / 24/05/1873 - Patrice de Mac-Mahon, Président de la République française / 30/01/1879 - Jules Grévy, Président de la République française / 03/12/1887 - Sadi Carnot, Président de la République française / 27/06/1894 - Jean Casimir-Perier, Président de la République française / 17/01/1895 - Félix Faure, Président de la République française / 18/02/1899 - Émile Loubet, Président de la République française / 18/02/1906 - Armand Fallières, Président de la République française / 18/02/1913 - Raymond Poincaré, Président de la République française / 18/02/1920 - Paul Deschanel, Président de la République française / 23/09/1920 - Alexandre Millerand, Président de la République française / 13/06/1924 - Gaston Doumergue, Président de la République française / 13/05/1931 - Paul Doumer, Président de la République française / 10/05/1932 - Albert Lebrun, Président de la République française / 11/06/1940 - Philippe Pétain, Chef de l'Etat français / "}]
["Éric Leroy du Lefort","26/04/1866","1936-12-19","3866-04-26","3936-12-19",{"$f":"evenements(D13,E13)","v":"04/09/1870 - Louis Jules Trochu, Président du Gouvernement de la Défense nationale / 31/08/1871 - Adolphe Thiers, Président de la République française / 24/05/1873 - Patrice de Mac-Mahon, Président de la République française / 30/01/1879 - Jules Grévy, Président de la République française / 03/12/1887 - Sadi Carnot, Président de la République française / 27/06/1894 - Jean Casimir-Perier, Président de la République française / 17/01/1895 - Félix Faure, Président de la République française / 18/02/1899 - Émile Loubet, Président de la République française / 18/02/1906 - Armand Fallières, Président de la République française / 18/02/1913 - Raymond Poincaré, Président de la République française / 18/02/1920 - Paul Deschanel, Président de la République française / 23/09/1920 - Alexandre Millerand, Président de la République française / 13/06/1924 - Gaston Doumergue, Président de la République française / 13/05/1931 - Paul Doumer, Président de la République française / 10/05/1932 - Albert Lebrun, Président de la République française / "}]
["Hortense Bonneau Le Charpentier","07/03/1875","1941-01-13","3875-03-07","3941-01-13",{"$f":"evenements(D14,E14)","v":"30/01/1879 - Jules Grévy, Président de la République française / 03/12/1887 - Sadi Carnot, Président de la République française / 27/06/1894 - Jean Casimir-Perier, Président de la République française / 17/01/1895 - Félix Faure, Président de la République française / 18/02/1899 - Émile Loubet, Président de la République française / 18/02/1906 - Armand Fallières, Président de la République française / 18/02/1913 - Raymond Poincaré, Président de la République française / 18/02/1920 - Paul Deschanel, Président de la République française / 23/09/1920 - Alexandre Millerand, Président de la République française / 13/06/1924 - Gaston Doumergue, Président de la République française / 13/05/1931 - Paul Doumer, Président de la République française / 10/05/1932 - Albert Lebrun, Président de la République française / 11/06/1940 - Philippe Pétain, Chef de l'Etat français / "}]
["Martine Buisson","30/06/1873","1945-09-04","3873-06-30","3945-09-04",{"$f":"evenements(D15,E15)","v":"30/01/1879 - Jules Grévy, Président de la République française / 03/12/1887 - Sadi Carnot, Président de la République française / 27/06/1894 - Jean Casimir-Perier, Président de la République française / 17/01/1895 - Félix Faure, Président de la République française / 18/02/1899 - Émile Loubet, Président de la République française / 18/02/1906 - Armand Fallières, Président de la République française / 18/02/1913 - Raymond Poincaré, Président de la République française / 18/02/1920 - Paul Deschanel, Président de la République française / 23/09/1920 - Alexandre Millerand, Président de la République française / 13/06/1924 - Gaston Doumergue, Président de la République française / 13/05/1931 - Paul Doumer, Président de la République française / 10/05/1932 - Albert Lebrun, Président de la République française / 11/06/1940 - Philippe Pétain, Chef de l'Etat français / 03/06/1944 - Charles de Gaulle, Président du gouvernement provisoire de la République française / "}]
["Michelle Cordier","17/02/1878","1974-11-12","3878-02-17","3974-11-12",{"$f":"evenements(D16,E16)","v":"30/01/1879 - Jules Grévy, Président de la République française / 03/12/1887 - Sadi Carnot, Président de la République française / 27/06/1894 - Jean Casimir-Perier, Président de la République française / 17/01/1895 - Félix Faure, Président de la République française / 18/02/1899 - Émile Loubet, Président de la République française / 18/02/1906 - Armand Fallières, Président de la République française / 18/02/1913 - Raymond Poincaré, Président de la République française / 18/02/1920 - Paul Deschanel, Président de la République française / 23/09/1920 - Alexandre Millerand, Président de la République française / 13/06/1924 - Gaston Doumergue, Président de la République française / 13/05/1931 - Paul Doumer, Président de la République française / 10/05/1932 - Albert Lebrun, Président de la République française / 11/06/1940 - Philippe Pétain, Chef de l'Etat français / 03/06/1944 - Charles de Gaulle, Président du gouvernement provisoire de la République française / 16/01/1947 - Vincent Auriol, Président de la République française / 16/01/1954 - René Coty, Président de la République française / 08/01/1959 - Charles de Gaulle, Président de la République française / 15/06/1969 - Georges Pompidou, Président de la République française / 19/05/1974 - Valéry Giscard-d'Estaing, Président de la République française / "}]
["Jacqueline Thomas du Blanchard","06/10/1859","1915-08-05","3859-10-06","3915-08-05",{"$f":"evenements(D17,E17)","v":"04/09/1870 - Louis Jules Trochu, Président du Gouvernement de la Défense nationale / 31/08/1871 - Adolphe Thiers, Président de la République française / 24/05/1873 - Patrice de Mac-Mahon, Président de la République française / 30/01/1879 - Jules Grévy, Président de la République française / 03/12/1887 - Sadi Carnot, Président de la République française / 27/06/1894 - Jean Casimir-Perier, Président de la République française / 17/01/1895 - Félix Faure, Président de la République française / 18/02/1899 - Émile Loubet, Président de la République française / 18/02/1906 - Armand Fallières, Président de la République française / 18/02/1913 - Raymond Poincaré, Président de la République française / "}]
["Bernard Noel","08/11/1862","1936-04-01","3862-11-08","3936-04-01",{"$f":"evenements(D18,E18)","v":"04/09/1870 - Louis Jules Trochu, Président du Gouvernement de la Défense nationale / 31/08/1871 - Adolphe Thiers, Président de la République française / 24/05/1873 - Patrice de Mac-Mahon, Président de la République française / 30/01/1879 - Jules Grévy, Président de la République française / 03/12/1887 - Sadi Carnot, Président de la République française / 27/06/1894 - Jean Casimir-Perier, Président de la République française / 17/01/1895 - Félix Faure, Président de la République française / 18/02/1899 - Émile Loubet, Président de la République française / 18/02/1906 - Armand Fallières, Président de la République française / 18/02/1913 - Raymond Poincaré, Président de la République française / 18/02/1920 - Paul Deschanel, Président de la République française / 23/09/1920 - Alexandre Millerand, Président de la République française / 13/06/1924 - Gaston Doumergue, Président de la République française / 13/05/1931 - Paul Doumer, Président de la République française / 10/05/1932 - Albert Lebrun, Président de la République française / "}]
["Thierry De Oliveira","18/07/1877","1943-06-14","3877-07-18","3943-06-14",{"$f":"evenements(D19,E19)","v":"30/01/1879 - Jules Grévy, Président de la République française / 03/12/1887 - Sadi Carnot, Président de la République française / 27/06/1894 - Jean Casimir-Perier, Président de la République française / 17/01/1895 - Félix Faure, Président de la République française / 18/02/1899 - Émile Loubet, Président de la République française / 18/02/1906 - Armand Fallières, Président de la République française / 18/02/1913 - Raymond Poincaré, Président de la République française / 18/02/1920 - Paul Deschanel, Président de la République française / 23/09/1920 - Alexandre Millerand, Président de la République française / 13/06/1924 - Gaston Doumergue, Président de la République française / 13/05/1931 - Paul Doumer, Président de la République française / 10/05/1932 - Albert Lebrun, Président de la République française / 11/06/1940 - Philippe Pétain, Chef de l'Etat français / "}]
["Zoé Boulay","28/04/1886","1939-12-13","3886-04-28","3939-12-13",{"$f":"evenements(D20,E20)","v":"03/12/1887 - Sadi Carnot, Président de la République française / 27/06/1894 - Jean Casimir-Perier, Président de la République française / 17/01/1895 - Félix Faure, Président de la République française / 18/02/1899 - Émile Loubet, Président de la République française / 18/02/1906 - Armand Fallières, Président de la République française / 18/02/1913 - Raymond Poincaré, Président de la République française / 18/02/1920 - Paul Deschanel, Président de la République française / 23/09/1920 - Alexandre Millerand, Président de la République française / 13/06/1924 - Gaston Doumergue, Président de la République française / 13/05/1931 - Paul Doumer, Président de la République française / 10/05/1932 - Albert Lebrun, Président de la République française / "}]
["Brigitte Potier","24/10/1880","1958-11-18","3880-10-24","3958-11-18",{"$f":"evenements(D21,E21)","v":"03/12/1887 - Sadi Carnot, Président de la République française / 27/06/1894 - Jean Casimir-Perier, Président de la République française / 17/01/1895 - Félix Faure, Président de la République française / 18/02/1899 - Émile Loubet, Président de la République française / 18/02/1906 - Armand Fallières, Président de la République française / 18/02/1913 - Raymond Poincaré, Président de la République française / 18/02/1920 - Paul Deschanel, Président de la République française / 23/09/1920 - Alexandre Millerand, Président de la République française / 13/06/1924 - Gaston Doumergue, Président de la République française / 13/05/1931 - Paul Doumer, Président de la République française / 10/05/1932 - Albert Lebrun, Président de la République française / 11/06/1940 - Philippe Pétain, Chef de l'Etat français / 03/06/1944 - Charles de Gaulle, Président du gouvernement provisoire de la République française / 16/01/1947 - Vincent Auriol, Président de la République française / 16/01/1954 - René Coty, Président de la République française / "}]
[]
[null,null,null,null,null,null,"Fonction personnalisée "]
[null,null,null,null,null,null,"Syntaxe :   =evenements(date naiss rectifiée; date decès rectifiée)"]